fUST/lending_fUST_20260505
["ID","MTS","AMOUNT","RATE_DAILY","PERIOD"]
[421583820,1777924232000,-500.0,0.00010902,2]
[421583797,1777924232000,-3495.0109174,0.000109,2]
[421583798,1777924232000,-3125.43596244,0.000109,2]
[421583801,1777924232000,-500.0,0.00010902,2]
[421583799,1777924232000,-3788.10410856,0.000109,2]
[421583800,1777924232000,-500.0,0.00010902,2]
[421583802,1777924232000,-500.0,0.00010902,2]
[421583807,1777924232000,-407.852169,0.00010902,2]
[421583818,1777924232000,-500.0,0.00010902,2]
[421583817,1777924232000,-631.28283863,0.00010902,2]
[421583808,1777924232000,-500.0,0.00010902,2]
[421583796,1777924232000,-3456.77003546,0.000109,2]
[421583806,1777924232000,-500.0,0.00010902,2]
[421583812,1777924232000,-500.0,0.00010902,2]
[421583814,1777924232000,-500.0,0.00010902,2]
[421583816,1777924232000,-500.0,0.00010902,2]
[421583815,1777924232000,-500.0,0.00010902,2]
[421583810,1777924232000,-500.0,0.00010902,2]
[421583813,1777924232000,-500.0,0.00010902,2]
[421583811,1777924232000,-500.0,0.00010902,2]
[421583819,1777924232000,-500.0,0.00010902,2]
[421583809,1777924232000,-500.0,0.00010902,2]
[421583805,1777924232000,-500.0,0.00010902,2]
[421583794,1777924232000,-253.874,0.00010884,2]
[421583821,1777924232000,-500.0,0.00010902,2]
[421583773,1777924232000,-5000.0,9.674e-05,2]
[421583775,1777924232000,-1187.0,9.771e-05,2]
[421583777,1777924232000,-779.24349909,9.772e-05,2]
[421583779,1777924232000,-3113.85702238,9.772e-05,2]
[421583790,1777924232000,-500.0,0.00010731,2]
[421583780,1777924232000,-364.44345709,9.83e-05,2]
[421583781,1777924232000,-160.322468,9.979e-05,2]
[421583789,1777924232000,-500.0,0.00010731,2]
[421583791,1777924232000,-500.0,0.00010731,2]
[421583782,1777924232000,-189.24,0.00010092,2]
[421583783,1777924232000,-300.0,0.00010268,2]
[421583787,1777924232000,-3646.48462205,0.00010569,2]
[421583785,1777924232000,-3246.46741393,0.00010369,2]
[421583788,1777924232000,-3938.8319598,0.00010669,2]
[421583784,1777924232000,-1509.60035665,0.00010269,2]
[421583786,1777924232000,-3592.64968683,0.00010469,2]
[421583793,1777924232000,-1105.3524305,0.00010774,2]
[421583803,1777924232000,-500.0,0.00010902,2]
[421583804,1777924232000,-500.0,0.00010902,2]
[421583795,1777924232000,-1449.27867652,0.000109,2]
[421583792,1777924232000,-289.00268781,0.00010731,2]
[421583830,1777924232000,-500.0,0.00010902,2]
[421583852,1777924232000,-1362.20638733,0.00010903,2]
[421583831,1777924232000,-500.0,0.00010902,2]
[421583851,1777924232000,-1297.33941651,0.00010903,2]
[421583850,1777924232000,-1297.33941651,0.00010903,2]
[421583870,1777924232000,-14033.89552306,0.00010904,2]
[421583856,1777924232000,-1091.65208704,0.00010903,2]
[421583854,1777924232000,-1362.20638733,0.00010903,2]
[421583853,1777924232000,-1362.20638733,0.00010903,2]
[421583855,1777924232000,-1362.20638733,0.00010903,2]
[421583857,1777924232000,-500.0,0.00010902,2]
[421583858,1777924232000,-500.0,0.00010902,2]
[421583849,1777924232000,-1297.33941651,0.00010903,2]
[421583859,1777924232000,-500.0,0.00010902,2]
[421583863,1777924232000,-1362.20638733,0.00010903,2]
[421583864,1777924232000,-1362.20638733,0.00010903,2]
[421583861,1777924232000,-270.55430029,0.00010903,2]
[421583862,1777924232000,-1362.20638733,0.00010903,2]
[421583866,1777924232000,-1362.20638733,0.00010903,2]
[421583865,1777924232000,-1362.20638733,0.00010903,2]
[421583867,1777924232000,-1289.55538,0.00010903,2]
[421583869,1777924232000,-1289.55538,0.00010903,2]
[421583832,1777924232000,-500.0,0.00010903,2]
[421583860,1777924232000,-500.0,0.00010902,2]
[421583848,1777924232000,-1297.33941651,0.00010903,2]
[421583868,1777924232000,-1289.55538,0.00010903,2]
[421583840,1777924232000,-1297.33941651,0.00010903,2]
[421583847,1777924232000,-1297.33941651,0.00010903,2]
[421583824,1777924232000,-500.0,0.00010902,2]
[421583822,1777924232000,-500.0,0.00010902,2]
[421583825,1777924232000,-500.0,0.00010902,2]
[421583823,1777924232000,-592.17485263,0.00010902,2]
[421583827,1777924232000,-500.0,0.00010902,2]
[421583828,1777924232000,-500.0,0.00010902,2]
[421583829,1777924232000,-500.0,0.00010902,2]
[421583833,1777924232000,-264.79197246,0.00010903,2]
[421583842,1777924232000,-1297.33941651,0.00010903,2]
[421583826,1777924232000,-500.0,0.00010902,2]
[421583837,1777924232000,-1297.33941651,0.00010903,2]
[421583844,1777924232000,-1297.33941651,0.00010903,2]
[421583845,1777924232000,-1297.33941651,0.00010903,2]
[421583843,1777924232000,-1297.33941651,0.00010903,2]
[421583835,1777924232000,-1297.33941651,0.00010903,2]
[421583838,1777924232000,-1297.33941651,0.00010903,2]
[421583846,1777924232000,-1297.33941651,0.00010903,2]
[421583841,1777924232000,-1297.33941651,0.00010903,2]
[421583834,1777924232000,-1297.33941651,0.00010903,2]
[421583836,1777924232000,-1297.33941651,0.00010903,2]
[421583839,1777924232000,-1297.33941651,0.00010903,2]
[421583952,1777924238000,-1451.581765,0.0001107,2]
[421583966,1777924238000,-557.5788265,0.00011257,2]
[421583960,1777924238000,-151.0,0.00011202,2]
[421583965,1777924238000,-151.0,0.00011202,2]
[421583967,1777924238000,-420.0,0.00011292,2]
[421583954,1777924238000,-151.0,0.000111,2]
[421583956,1777924238000,-500.0,0.00011106,2]
[421583958,1777924238000,-152.0,0.00011119,7]
[421583961,1777924238000,-162.380719,0.00011202,2]
[421583964,1777924238000,-537.6845,0.00011202,2]
[421583963,1777924238000,-162.380719,0.00011202,2]
[421583962,1777924238000,-445.202766,0.00011202,2]
[421583971,1777924238000,-300.0,0.00011327,2]
[421583970,1777924238000,-300.0,0.00011327,2]
[421583969,1777924238000,-600.0,0.00011327,2]
[421583951,1777924238000,-226.8289892,0.0001107,2]
[421583974,1777924238000,-300.0,0.00011327,2]
[421583959,1777924238000,-537.6845,0.00011202,2]
[421583950,1777924238000,-151.0,0.00011,2]
[421583926,1777924238000,-562.29922733,0.00010902,2]
[421583937,1777924238000,-151.0,0.00011,2]
[421583972,1777924238000,-300.0,0.00011327,2]
[421583915,1777924238000,-500.0,0.00010902,2]
[421583913,1777924238000,-500.0,0.00010902,2]
[421583911,1777924238000,-500.0,0.00010902,2]
[421583918,1777924238000,-500.0,0.00010902,2]
[421583920,1777924238000,-500.0,0.00010902,2]
[421583922,1777924238000,-500.0,0.00010902,2]
[421583924,1777924238000,-500.0,0.00010902,2]
[421583929,1777924238000,-10.70077267,0.00010902,2]
[421583931,1777924238000,-274822.15762343,0.00010904,2]
[421583941,1777924238000,-151.0,0.00011,2]
[421583943,1777924238000,-151.0,0.00011,2]
[421583945,1777924238000,-151.0,0.00011,2]
[421583947,1777924238000,-151.0,0.00011,2]
[421583948,1777924238000,-151.0,0.00011,2]
[421583933,1777924238000,-182.14431511,0.00010959,2]
[421583939,1777924238000,-151.0,0.00011,2]
[421583935,1777924238000,-151.0,0.00011,2]
[421583976,1777924238000,-300.0,0.00011327,2]
[421583968,1777924238000,-578.20924308,0.00011312,2]
[421583978,1777924238000,-300.0,0.00011327,2]
[421584003,1777924238000,-773.2413689,0.00011752,2]
[421584004,1777924238000,-801.85129955,0.00011807,2]
[421584002,1777924238000,-557.5788265,0.0001175,2]
[421583999,1777924238000,-151.0,0.0001175,2]
[421584005,1777924238000,-430.04327937,0.0001183,2]
[421584000,1777924238000,-461.67526834,0.0001175,2]
[421583998,1777924238000,-151.0,0.000117,2]
[421584001,1777924238000,-168.3888056,0.0001175,2]
[421583997,1777924238000,-745.65223616,0.00011697,2]
[421584007,1777924238000,-235.2472607,0.00011897,2]
[421584008,1777924238000,-862.28603014,0.00011917,2]
[421584012,1777924238000,-174.61919141,0.00012298,2]
[421584010,1777924238000,-151.0,0.00012298,2]
[421584009,1777924238000,-151.0,0.00012,2]
[421584013,1777924238000,-517.79017351,0.00012298,2]
[421584014,1777924238000,-151.0,0.000123,2]
[421584015,1777924238000,-587.0,0.00012418,2]
[421583973,1777924238000,-300.0,0.00011327,2]
[421584006,1777924238000,-831.51979763,0.00011862,2]
[421583996,1777924238000,-719.04747942,0.00011642,2]
[421584011,1777924238000,-478.75725327,0.00012298,2]
[421583995,1777924238000,-693.3919763,0.00011587,2]
[421583975,1777924238000,-300.0,0.00011327,2]
[421583979,1777924238000,-300.0,0.00011327,2]
[421583977,1777924238000,-300.0,0.00011327,2]
[421583980,1777924238000,-300.0,0.00011327,2]
[421583982,1777924238000,-300.0,0.00011327,2]
[421583992,1777924238000,-644.79446246,0.00011477,2]
[421583981,1777924238000,-300.0,0.00011327,2]
[421583990,1777924238000,-292.2724104,0.00011408,2]
[421583993,1777924238000,-270.96213207,0.00011496,2]
[421583989,1777924238000,-3155.4714637,0.00011408,2]
[421583988,1777924238000,-38285.6806981,0.00011408,2]
[421583983,1777924238000,-300.0,0.00011327,2]
[421583986,1777924238000,-599.60298507,0.00011367,2]
[421583984,1777924238000,-300.0,0.00011327,2]
[421583985,1777924238000,-325.6623219,0.00011337,2]
[421583991,1777924238000,-621.78829552,0.00011422,2]
[421583987,1777924238000,-151.0,0.000114,2]
[421583994,1777924238000,-668.65185757,0.00011532,2]
[421584051,1777924239000,-500.0,0.00013698,2]
[421584059,1777924239000,-500.0,0.00013698,2]
[421584064,1777924239000,-1048.62,0.00013698,2]
[421584055,1777924239000,-504.52967493,0.00013698,2]
[421584052,1777924239000,-500.0,0.00013698,2]
[421584050,1777924239000,-517.57182111,0.00013698,2]
[421584049,1777924239000,-565.34282761,0.00013698,2]
[421584054,1777924239000,-500.0,0.00013698,2]
[421584045,1777924239000,-500.0,0.00013698,2]
[421584058,1777924239000,-506.37353624,0.00013698,2]
[421584053,1777924239000,-500.0,0.00013698,2]
[421584044,1777924239000,-500.0,0.00013698,2]
[421584061,1777924239000,-500.0,0.00013698,2]
[421584066,1777924239000,-1048.62,0.00013698,2]
[421584062,1777924239000,-506.23767273,0.00013698,2]
[421584063,1777924239000,-576.12043824,0.00013698,2]
[421584060,1777924239000,-500.0,0.00013698,2]
[421584067,1777924239000,-1048.62,0.00013698,2]
[421584056,1777924239000,-500.0,0.00013698,2]
[421584068,1777924239000,-1048.62,0.00013698,2]
[421584069,1777924239000,-1048.62,0.00013698,2]
[421584071,1777924239000,-1048.62,0.00013698,2]
[421584080,1777924239000,-1048.62,0.00013698,2]
[421584074,1777924239000,-1048.62,0.00013698,2]
[421584070,1777924239000,-1048.62,0.00013698,2]
[421584046,1777924239000,-500.0,0.00013698,2]
[421584065,1777924239000,-1048.62,0.00013698,2]
[421584047,1777924239000,-500.0,0.00013698,2]
[421584025,1777924239000,-743.0,0.00012768,2]
[421584043,1777924239000,-552.46443255,0.00013698,2]
[421584072,1777924239000,-1048.62,0.00013698,2]
[421584017,1777924239000,-162.380719,0.00012571,2]
[421584018,1777924239000,-151.0,0.000126,2]
[421584016,1777924239000,-720.0,0.0001246,2]
[421584020,1777924239000,-193.6984498,0.00012719,2]
[421584019,1777924239000,-325.688714,0.00012719,2]
[421584021,1777924239000,-646.0,0.00012768,2]
[421584026,1777924239000,-185.0,0.00012768,2]
[421584028,1777924239000,-445.20276601,0.00012846,2]
[421584024,1777924239000,-460.394,0.00012768,2]
[421584030,1777924239000,-160.0,0.00012917,2]
[421584022,1777924239000,-1411.0,0.00012768,2]
[421584023,1777924239000,-2214.0,0.00012768,2]
[421584029,1777924239000,-162.380719,0.00012846,2]
[421584027,1777924239000,-165.712832,0.00012846,2]
[421584032,1777924239000,-160.0,0.00012917,2]
[421584042,1777924239000,-823.0,0.00013656,2]
[421584031,1777924239000,-160.0,0.00012917,2]
[421584034,1777924239000,-231.78242609,0.00013233,14]
[421584033,1777924239000,-151.0,0.00013,2]
[421584035,1777924239000,-151.0,0.000133,2]
[421584040,1777924239000,-170.86,0.0001362,2]
[421584037,1777924239000,-168.18,0.00013444,2]
[421584036,1777924239000,-167.86,0.00013357,2]
[421584038,1777924239000,-168.89,0.00013523,2]
[421584041,1777924239000,-822.0,0.00013623,2]
[421584039,1777924239000,-151.0,0.000136,2]
[421584048,1777924239000,-500.0,0.00013698,2]
[421584073,1777924239000,-1048.62,0.00013698,2]
[421584057,1777924239000,-605.93,0.00013698,2]
[421584081,1777924239000,-1048.62,0.00013698,2]
[421584106,1777924239000,-864.0,0.00013705,2]
[421584101,1777924239000,-157.61,0.00013699,2]
[421584112,1777924239000,-151.0,0.000139,2]
[421584113,1777924239000,-500.0,0.00014322,2]
[421584111,1777924239000,-495.64310164,0.0001383,2]
[421584114,1777924239000,-3943.39,0.00014487,2]
[421584115,1777924239000,-325.662322,0.00014556,2]
[421584116,1777924239000,-226.8289892,0.00014675,2]
[421584118,1777924239000,-208.801172,0.000147,7]
[421584127,1777924239000,-280.966601,0.000147,2]
[421584128,1777924239000,-160.0,0.000147,7]
[421584117,1777924239000,-1451.581765,0.00014681,2]
[421584119,1777924239000,-396.809297,0.000147,7]
[421584123,1777924239000,-160.0,0.000147,7]
[421584121,1777924239000,-465.41515,0.000147,2]
[421584122,1777924239000,-770.830301,0.000147,2]
[421584120,1777924239000,-160.0,0.000147,2]
[421584124,1777924239000,-1216.997802,0.000147,7]
[421584125,1777924239000,-2273.995604,0.000147,7]
[421584126,1777924239000,-164.303896,0.000147,7]
[421584130,1777924239000,-194.971404,0.000147,7]
[421584131,1777924239000,-160.0,0.00014801,3]
[421584129,1777924239000,-177.485702,0.000147,7]
[421584135,1777924239000,-574.40201607,0.000149,2]
[421584132,1777924239000,-748.16732894,0.00014852,2]
[421584133,1777924239000,-574.40201608,0.000149,2]
[421584083,1777924239000,-1048.62,0.00013698,2]
[421584103,1777924239000,-151.0,0.00013699,2]
[421584102,1777924239000,-151.0,0.00013699,2]
[421584134,1777924239000,-574.40201607,0.000149,2]
[421584104,1777924239000,-30000.0,0.00013699,2]
[421584107,1777924239000,-173.97,0.00013732,2]
[421584078,1777924239000,-1048.62,0.00013698,2]
[421584076,1777924239000,-1048.62,0.00013698,2]
[421584082,1777924239000,-1048.62,0.00013698,2]
[421584075,1777924239000,-1048.62,0.00013698,2]
[421584079,1777924239000,-1048.62,0.00013698,2]
[421584085,1777924239000,-1048.62,0.00013698,2]
[421584084,1777924239000,-1048.62,0.00013698,2]
[421584087,1777924239000,-1048.62,0.00013698,2]
[421584095,1777924239000,-156.0,0.00013699,2]
[421584093,1777924239000,-500.0,0.00013698,2]
[421584088,1777924239000,-1048.73109848,0.00013698,2]
[421584090,1777924239000,-411.05627722,0.00013698,2]
[421584086,1777924239000,-1048.62,0.00013698,2]
[421584096,1777924239000,-181.57692412,0.00013699,2]
[421584108,1777924239000,-4120.61051629,0.00013741,2]
[421584091,1777924239000,-500.0,0.00013698,2]
[421584110,1777924239000,-175.24,0.00013821,2]
[421584109,1777924239000,-175.37,0.00013821,2]
[421584097,1777924239000,-1000.0,0.00013699,2]
[421584099,1777924239000,-166.70373603,0.00013699,30]
[421584100,1777924239000,-1000.0,0.00013699,2]
[421584105,1777924239000,-6318.90854454,0.00013699,7]
[421584092,1777924239000,-500.0,0.00013698,2]
[421584136,1777924239000,-1767.98588458,0.00014914,2]
[421584094,1777924239000,-500.0,0.00013698,2]
[421584089,1777924239000,-500.0,0.00013698,2]
[421584098,1777924239000,-203.313734,0.00013699,2]
[421584175,1777924240000,-160.0,0.000153,3]
[421584178,1777924240000,-748.16732894,0.0001536,2]
[421584180,1777924240000,-634.657023,0.00015435,2]
[421584174,1777924240000,-10036.22632279,0.000153,2]
[421584171,1777924240000,-310.144187,0.00015294,2]
[421584182,1777924240000,-242.025957,0.00015435,7]
[421584183,1777924240000,-748.16732894,0.00015445,2]
[421584184,1777924240000,-160.0,0.00015458,4]
[421584173,1777924240000,-310.144187,0.00015294,2]
[421584177,1777924240000,-4286.23546865,0.00015336,2]
[421584172,1777924240000,-310.144187,0.00015294,2]
[421584181,1777924240000,-1659.542457,0.00015435,7]
[421584189,1777924240000,-1551.56943512,0.000156,2]
[421584179,1777924240000,-180.367862,0.00015435,7]
[421584186,1777924240000,-10036.22632279,0.000155,2]
[421584185,1777924240000,-748.16732894,0.00015483,2]
[421584187,1777924240000,-748.16732894,0.0001551,2]
[421584197,1777924240000,-748.16732894,0.00015667,2]
[421584196,1777924240000,-748.16732894,0.00015662,2]
[421584195,1777924240000,-748.16732894,0.00015654,2]
[421584192,1777924240000,-748.16732894,0.00015631,2]
[421584188,1777924240000,-748.16732894,0.00015546,2]
[421584191,1777924240000,-748.16732894,0.00015608,2]
[421584194,1777924240000,-748.16732894,0.00015649,2]
[421584170,1777924240000,-310.144187,0.00015294,2]
[421584176,1777924240000,-831.0,0.00015314,2]
[421584167,1777924240000,-151.0,0.00015294,2]
[421584156,1777924240000,-1767.98588458,0.00015142,2]
[421584169,1777924240000,-151.0,0.00015294,2]
[421584190,1777924240000,-10036.22632279,0.000156,2]
[421584140,1777924240000,-1152.0,0.00015017,2]
[421584137,1777924240000,-748.16732894,0.00014946,2]
[421584138,1777924240000,-6632.40777044,0.00015,2]
[421584139,1777924240000,-10036.22632279,0.00015,2]
[421584142,1777924240000,-500.0,0.00015033,2]
[421584152,1777924240000,-748.16732894,0.00015135,2]
[421584153,1777924240000,-748.16732894,0.00015139,2]
[421584143,1777924240000,-748.16732894,0.00015059,2]
[421584141,1777924240000,-500.0,0.00015033,2]
[421584144,1777924240000,-230.232865,0.00015068,2]
[421584155,1777924240000,-748.16732894,0.00015142,2]
[421584157,1777924240000,-748.16732894,0.00015164,2]
[421584151,1777924240000,-748.16732894,0.00015133,2]
[421584149,1777924240000,-748.16732894,0.00015106,2]
[421584150,1777924240000,-748.16732894,0.00015125,2]
[421584147,1777924240000,-340.89,0.000151,2]
[421584145,1777924240000,-1000.0,0.00015076,2]
[421584158,1777924240000,-748.16732894,0.00015171,2]
[421584161,1777924240000,-1767.98588458,0.00015251,2]
[421584163,1777924240000,-748.16732894,0.00015284,2]
[421584162,1777924240000,-748.16732894,0.00015281,2]
[421584164,1777924240000,-38000.0,0.00015285,3]
[421584160,1777924240000,-748.16732894,0.00015231,2]
[421584168,1777924240000,-151.0,0.00015294,2]
[421584166,1777924240000,-22201.95217613,0.00015294,3]
[421584165,1777924240000,-38000.0,0.00015294,3]
[421584159,1777924240000,-10036.22632279,0.000152,2]
[421584193,1777924240000,-160.0,0.00015634,3]
[421584204,1777924240000,-1000.0,0.000157,2]
[421584209,1777924240000,-1726.32644367,0.00015737,2]
[421584237,1777924240000,-500.0,0.00016,2]
[421584234,1777924240000,-211.92439678,0.00016,2]
[421584228,1777924240000,-494.86774736,0.00016,2]
[421584235,1777924240000,-33328.6815523,0.00016,2]
[421584232,1777924240000,-1412.02129341,0.00016,2]
[421584230,1777924240000,-181.0,0.00016,7]
[421584241,1777924240000,-500.0,0.00016,2]
[421584240,1777924240000,-500.0,0.00016,2]
[421584242,1777924240000,-500.0,0.00016,2]
[421584244,1777924240000,-500.0,0.00016,2]
[421584247,1777924240000,-3000.0,0.00016,2]
[421584245,1777924240000,-500.0,0.00016,2]
[421584239,1777924240000,-160.0,0.00016,3]
[421584248,1777924240000,-1957.07274091,0.00016,2]
[421584249,1777924240000,-6401.02572904,0.00016,2]
[421584246,1777924240000,-830.072,0.00016,2]
[421584251,1777924240000,-1306.3209719,0.00016005,2]
[421584250,1777924240000,-160.0,0.00016,7]
[421584253,1777924240000,-151.0,0.0001601,2]
[421584252,1777924240000,-3000.0,0.0001601,2]
[421584255,1777924240000,-1306.3209719,0.00016024,2]
[421584199,1777924240000,-748.16732894,0.00015686,2]
[421584256,1777924240000,-3000.0,0.0001603,2]
[421584258,1777924240000,-151.0,0.0001603,2]
[421584257,1777924240000,-151.0,0.0001603,2]
[421584259,1777924240000,-310.144187,0.0001603,2]
[421584243,1777924240000,-500.0,0.00016,2]
[421584238,1777924240000,-500.0,0.00016,2]
[421584254,1777924240000,-3000.0,0.0001602,2]
[421584231,1777924240000,-2000.0,0.00016,2]
[421584227,1777924240000,-150.67,0.000159,8]
[421584210,1777924240000,-646.0,0.00015768,2]
[421584203,1777924240000,-1000.0,0.000157,2]
[421584198,1777924240000,-2618.20209099,0.0001568,2]
[421584202,1777924240000,-1000.0,0.000157,2]
[421584208,1777924240000,-1000.0,0.000157,2]
[421584201,1777924240000,-1000.0,0.000157,2]
[421584200,1777924240000,-748.16732894,0.00015694,2]
[421584207,1777924240000,-1000.0,0.000157,2]
[421584206,1777924240000,-1000.0,0.000157,2]
[421584205,1777924240000,-1000.0,0.000157,2]
[421584213,1777924240000,-442.0,0.00015768,2]
[421584214,1777924240000,-740.0,0.00015768,2]
[421584211,1777924240000,-1411.0,0.00015768,2]
[421584216,1777924240000,-748.16732894,0.00015771,2]
[421584215,1777924240000,-185.0,0.00015768,2]
[421584226,1777924240000,-200.0,0.000159,2]
[421584222,1777924240000,-200.28062429,0.00015875,2]
[421584221,1777924240000,-561.24292392,0.0001583,2]
[421584220,1777924240000,-3763.24,0.0001581,8]
[421584236,1777924240000,-536.234,0.00016,2]
[421584218,1777924240000,-1551.56943512,0.000158,2]
[421584223,1777924240000,-1551.56943512,0.000159,2]
[421584219,1777924240000,-10036.22632279,0.000158,2]
[421584212,1777924240000,-2214.0,0.00015768,2]
[421584229,1777924240000,-180.0,0.00016,7]
[421584224,1777924240000,-10036.22632279,0.000159,2]
[421584217,1777924240000,-748.16732894,0.00015783,2]
[421584286,1777924241000,-3000.0,0.0001616,2]
[421584285,1777924241000,-2892.98893154,0.00016159,30]
[421584287,1777924241000,-3000.0,0.0001617,2]
[421584300,1777924241000,-2892.98893154,0.00016238,30]
[421584290,1777924241000,-3000.0,0.0001619,2]
[421584291,1777924241000,-3000.0,0.000162,2]
[421584296,1777924241000,-3000.0,0.0001621,2]
[421584289,1777924241000,-2892.98893154,0.00016185,30]
[421584297,1777924241000,-2892.98893154,0.00016212,30]
[421584288,1777924241000,-3000.0,0.0001618,2]
[421584295,1777924241000,-6401.02572904,0.000162,2]
[421584293,1777924241000,-1551.56943512,0.000162,2]
[421584298,1777924241000,-3000.0,0.0001622,2]
[421584294,1777924241000,-10036.22632279,0.000162,2]
[421584299,1777924241000,-3000.0,0.0001623,2]
[421584301,1777924241000,-3000.0,0.0001624,2]
[421584305,1777924241000,-151.0,0.00016265,2]
[421584304,1777924241000,-2892.98893154,0.00016265,30]
[421584302,1777924241000,-3000.0,0.0001625,2]
[421584303,1777924241000,-3000.0,0.0001626,2]
[421584284,1777924241000,-3000.0,0.0001615,2]
[421584292,1777924241000,-1957.07274091,0.000162,2]
[421584282,1777924241000,-2892.98893154,0.00016132,30]
[421584272,1777924241000,-7903.46215565,0.000161,2]
[421584281,1777924241000,-173.66604862,0.00016131,2]
[421584312,1777924241000,-310.144187,0.0001628,2]
[421584260,1777924241000,-310.144187,0.0001603,2]
[421584261,1777924241000,-310.144187,0.0001603,2]
[421584262,1777924241000,-310.144187,0.0001603,2]
[421584263,1777924241000,-3000.0,0.0001604,2]
[421584264,1777924241000,-3000.0,0.0001605,2]
[421584265,1777924241000,-5000.0,0.0001606,2]
[421584267,1777924241000,-3000.0,0.0001607,2]
[421584268,1777924241000,-2892.98893154,0.00016079,14]
[421584271,1777924241000,-250.42,0.000161,2]
[421584266,1777924241000,-3000.0,0.0001606,2]
[421584269,1777924241000,-3000.0,0.0001608,2]
[421584276,1777924241000,-2892.98893154,0.00016105,14]
[421584270,1777924241000,-3000.0,0.0001609,2]
[421584274,1777924241000,-1551.56943512,0.000161,2]
[421584277,1777924241000,-3000.0,0.0001611,2]
[421584273,1777924241000,-3000.0,0.000161,2]
[421584275,1777924241000,-10036.22632279,0.000161,2]
[421584278,1777924241000,-160.0,0.00016116,5]
[421584279,1777924241000,-3000.0,0.0001612,2]
[421584280,1777924241000,-3000.0,0.0001613,2]
[421584283,1777924241000,-3000.0,0.0001614,2]
[421584306,1777924241000,-3000.0,0.0001627,2]
[421584342,1777924241000,-234548.69663666,0.00016416,30]
[421584311,1777924241000,-310.144187,0.0001628,2]
[421584331,1777924241000,-3000.0,0.0001636,2]
[421584336,1777924241000,-2521.69807456,0.00016392,2]
[421584337,1777924241000,-2892.98893154,0.00016398,60]
[421584348,1777924241000,-310.144187,0.00016416,2]
[421584340,1777924241000,-3000.0,0.0001641,2]
[421584350,1777924241000,-3000.0,0.0001642,2]
[421584349,1777924241000,-310.144187,0.00016416,2]
[421584357,1777924241000,-7685.78118442,0.00016438,2]
[421584341,1777924241000,-200.0,0.00016415,2]
[421584343,1777924241000,-14367.51518706,0.00016416,30]
[421584344,1777924241000,-870.86124016,0.00016416,30]
[421584346,1777924241000,-310.144187,0.00016416,2]
[421584347,1777924241000,-310.144187,0.00016416,2]
[421584345,1777924241000,-151.0,0.00016416,2]
[421584353,1777924241000,-500.0,0.00016438,2]
[421584351,1777924241000,-2892.98893154,0.00016424,60]
[421584352,1777924241000,-3000.0,0.0001643,2]
[421584355,1777924241000,-4303.1092,0.00016438,2]
[421584354,1777924241000,-2412.8,0.00016438,2]
[421584356,1777924241000,-1404.9286,0.00016438,2]
[421584313,1777924241000,-310.144187,0.0001628,2]
[421584334,1777924241000,-3000.0,0.0001638,2]
[421584330,1777924241000,-3000.0,0.0001635,2]
[421584339,1777924241000,-10036.22632279,0.000164,2]
[421584333,1777924241000,-2892.98893154,0.00016371,30]
[421584308,1777924241000,-3000.0,0.0001628,2]
[421584309,1777924241000,-151.0,0.0001628,2]
[421584307,1777924241000,-1072.93,0.00016274,2]
[421584310,1777924241000,-310.144187,0.0001628,2]
[421584326,1777924241000,-3000.0,0.0001632,2]
[421584329,1777924241000,-2892.98893154,0.00016345,30]
[421584324,1777924241000,-3000.0,0.0001631,2]
[421584316,1777924241000,-2892.98893154,0.00016291,30]
[421584314,1777924241000,-3000.0,0.0001629,2]
[421584318,1777924241000,-160.0,0.000163,30]